[Event "Turkish Super League 2019"]
[Site "Konya"]
[Date "2019.07.25"]
[Round "10"]
[White "Atalik, Ekaterina"]
[Black "Mammadzada, Gunay"]
[Result "1-0"]
[ECO "E42"]
[WhiteElo "2459"]
[BlackElo "2427"]
[Annotator "ChessBase"]
[PlyCount "71"]
[EventDate "2019.07.17"]
[EventType "team-tourn"]
[EventCountry "TUR"]
[SourceTitle "playchess.com"]
[Source "ChessBase"]
[SourceQuality "1"]
[TimeControl "40/5400+30:1800+30"]

1. d4 {[%emt 0:00:30]} Nf6 {[%emt 0:00:30]} 2. c4 {[%emt 0:00:30]} e6 {[%emt 0:00:30]} 3. Nc3 {[%emt 0:00:30]} Bb4 {[%emt 0:00:00]} 4. e3 {[%emt 0:00:30]} c5 {[%emt 0:00:00]} 5. Nge2 {[%emt 0:02:30]} cxd4 {[%emt 0:00:30]} 6. exd4 {[%emt 0:02:30]} O-O {[%emt 0:00:30]} 7. a3 {[%emt 0:00:30]} Be7 {[%emt 0:00:00]} 8. Nf4 {[%emt 0:02:30]} d6 {[%emt 0:01:00]} 9. Be2 {[%emt 0:00:30]} Nc6 {[%emt 0:03:30]} 10. d5 {[%emt 0:02:30]} Ne5 {[%emt 0:06:30]} 11. O-O {[%emt 0:01:30]} Re8 {[%emt 0:14:30]} 12. b3 {[%emt 0:04:30]} Bf8 {[%emt 0:10:30]} 13. Bb2 {[%emt 0:03:30]} a6 {[%emt 0:10:30]} 14. Re1 {[%emt 0:05:30]} Bd7 {[%emt 0:04:30]} 15. Nh5 {[%emt 0:02:30]} Nxh5 {[%emt 0:07:30]} 16. Bxh5 {[%emt 0:00:30]} b5 {[%emt 0:03:30]} 17. dxe6 {[%emt 0:05:30]} Rxe6 {[%emt 0:00:30]} 18. f4 {[%emt 0:03:30]} Ng6 {[%emt 0:07:30]} 19. Rxe6 {[%emt 0:04:30]} Qb6+ {[%emt 0:01:30]} 20. Kh1 {[%emt 0:00:30]} fxe6 {[%emt 0:00:30]} 21. f5 {[%emt 0:01:30]} Qf2 {[%emt 0:06:39]} 22. Qf3 {[%emt 0:07:30]} Qxb2 {[%emt 0:01:23]} 23. Rb1 {[%emt 0:04:30]} Qc2 {[%emt 0:10:32]} 24. fxg6 {[%emt 0:02:30]} hxg6 {[%emt 0:03:41]} 25. Qxa8 {[%emt 0:00:30]} gxh5 {[%emt 0:00:11]} 26. Rf1 {[%emt 0:00:30]} Qxc3 {[%emt 0:00:48]} 27. Qxf8+ {[%emt 0:00:30]} Kh7 {[%emt 0:00:05]} 28. Qxd6 {[%emt 0:00:30]} Be8 {[%emt 0:00:57]} 29. Qxe6 {[%emt 0:03:30]} Bg6 {[%emt 0:00:25]} 30. cxb5 {[%emt 0:00:30]} axb5 {[%emt 0:00:47]} 31. Qd5 {[%emt 0:02:30]} h4 {[%emt 0:03:41]} 32. h3 {[%emt 0:01:30]} b4 {[%emt 0:01:53]} 33. axb4 {[%emt 0:04:30]} Qxb4 {[%emt 0:00:04]} 34. Qc4 {[%emt 0:01:30]} Qe7 {[%emt 0:00:13]} 35. b4 {[%emt 0:01:30]} Qd8 {[%emt 0:00:34]} 36. Rf4 {[%emt 0:01:30]} 1-0

[Event "Turkish Super League 2019"]
[Site "Konya"]
[Date "2019.07.25"]
[Round "10"]
[White "Soysal, Serkan"]
[Black "Rozum, Ivan"]
[Result "0-1"]
[ECO "E62"]
[WhiteElo "2431"]
[BlackElo "2583"]
[Annotator "ChessBase"]
[PlyCount "106"]
[EventDate "2019.07.17"]
[EventType "team-tourn"]
[EventCountry "TUR"]
[SourceTitle "playchess.com"]
[Source "ChessBase"]
[SourceQuality "1"]
[TimeControl "40/5400+30:1800+30"]

1. d4 {[%emt 0:00:30]} Nf6 {[%emt 0:03:30]} 2. c4 {[%emt 0:00:00]} d6 {[%emt 0:00:30]} 3. Nf3 {[%emt 0:00:00]} g6 {[%emt 0:00:30]} 4. Nc3 {[%emt 0:00:30]} Bf5 {[%emt 0:00:30]} 5. g3 {[%emt 0:00:00]} Bg7 {[%emt 0:00:00]} 6. Bg2 {[%emt 0:00:00]} Ne4 {[%emt 0:00:00]} 7. Bd2 {[%emt 0:03:30]} Nxd2 {[%emt 0:00:30]} 8. Qxd2 {[%emt 0:00:00]} O-O {[%emt 0:01:30]} 9. h4 {[%emt 0:00:00]} c5 {[%emt 0:06:30]} 10. h5 {[%emt 0:01:30]} Nc6 {[%emt 0:04:30]} 11. hxg6 {[%emt 0:05:30]} Bxg6 {[%emt 0:00:30]} 12. d5 {[%emt 0:04:30]} Na5 {[%emt 0:02:30]} 13. b3 {[%emt 0:00:30]} a6 {[%emt 0:00:30]} 14. Rc1 {[%emt 0:00:30]} b5 {[%emt 0:03:30]} 15. Ng5 {[%emt 0:20:30]} bxc4 {[%emt 0:09:30]} 16. bxc4 {[%emt 0:00:30]} h6 {[%emt 0:05:30]} 17. Nf3 {[%emt 0:03:30]} Nxc4 {[%emt 0:00:00]} 18. Qf4 {[%emt 0:00:30]} Qa5 {[%emt 0:18:00]} 19. Qxc4 {[%emt 0:02:30]} Rfb8 {[%emt 0:00:30]} 20. a3 {[%emt 0:01:30]} Qxa3 {[%emt 0:01:30]} 21. O-O {[%emt 0:01:30]} Rb4 {[%emt 0:04:30]} 22. Qa2 {[%emt 0:00:30]} Qxa2 {[%emt 0:00:30]} 23. Nxa2 {[%emt 0:00:00]} Rb2 {[%emt 0:00:30]} 24. Nc3 {[%emt 0:00:00]} a5 {[%emt 0:00:30]} 25. Nh4 {[%emt 0:08:30]} a4 {[%emt 0:21:50]} 26. Nxg6 {[%emt 0:00:30]} fxg6 {[%emt 0:00:00]} 27. Be4 {[%emt 0:02:30]} Kf7 {[%emt 0:00:25]} 28. Bb1 {[%emt 0:07:30]} a3 {[%emt 0:02:02]} 29. Na2 {[%emt 0:00:00]} Rxe2 {[%emt 0:00:04]} 30. Rc2 {[%emt 0:00:00]} Rxc2 {[%emt 0:06:58]} 31. Bxc2 {[%emt 0:00:30]} Rb8 {[%emt 0:00:00]} 32. Rb1 {[%emt 0:00:30]} Bb2 {[%emt 0:00:32]} 33. Kf1 {[%emt 0:05:30]} g5 {[%emt 0:01:36]} 34. Re1 {[%emt 0:09:30]} Bd4 {[%emt 0:01:00]} 35. Rb1 {[%emt 0:00:30]} Rb2 {[%emt 0:02:54]} 36. Rxb2 {[%emt 0:00:00]} axb2 {[%emt 0:00:01]} 37. g4 {[%emt 0:07:48]} Kf6 {[%emt 0:00:23]} 38. f3 {[%emt 0:05:38]} Ke5 {[%emt 0:00:30]} 39. Be4 {[%emt 0:00:00]} Kf4 {[%emt 0:00:21]} 40. Ke2 {[%emt 0:00:00]} h5 {[%emt 0:00:00]} 41. gxh5 {[%emt 0:05:34]} g4 {[%emt 0:00:54]} 42. Kf1 {[%emt 0:01:30]} gxf3 {[%emt 0:00:30]} 43. Bb1 {[%emt 0:00:00]} Ke5 {[%emt 0:01:30]} 44. h6 {[%emt 0:01:00]} Kxd5 {[%emt 0:00:30]} 45. h7 {[%emt 0:00:30]} Kc4 {[%emt 0:00:00]} 46. Bc2 {[%emt 0:00:00]} d5 {[%emt 0:07:00]} 47. Ke1 {[%emt 0:00:00]} Bg7 {[%emt 0:01:30]} 48. Kf2 {[%emt 0:00:30]} d4 {[%emt 0:00:00]} 49. Kxf3 {[%emt 0:01:30]} d3 {[%emt 0:00:00]} 50. Bb1 {[%emt 0:00:30]} Kd4 {[%emt 0:00:30]} 51. Kf2 {[%emt 0:02:30]} e5 {[%emt 0:00:00]} 52. Kf3 {[%emt 0:01:30]} e4+ {[%emt 0:00:00]} 53. Kf2 {[%emt 0:00:30]} Bf6 {[%emt 0:00:30]} 0-1

[Event "Turkish Super League 2019"]
[Site "Konya"]
[Date "2019.07.25"]
[Round "10"]
[White "Szczepkowska, Karina"]
[Black "Osmak, Iulija"]
[Result "1/2-1/2"]
[ECO "D14"]
[WhiteElo "2425"]
[BlackElo "2395"]
[Annotator "NA"]
[PlyCount "57"]
[EventDate "2019.07.17"]
[EventType "team-tourn"]
[EventCountry "TUR"]
[SourceTitle "playchess.com"]
[Source "ChessBase"]
[SourceQuality "1"]
[TimeControl "40/5400+30:1800+30"]

1. d4 {[%emt 0:00:30]} d5 {[%emt 0:00:30]} 2. c4 {[%emt 0:00:30]} c6 {[%emt 0:00:00]} 3. cxd5 {[%emt 0:00:30]} cxd5 {[%emt 0:00:00]} 4. Nc3 {[%emt 0:00:00]} Nc6 {[%emt 0:00:30]} 5. Nf3 {[%emt 0:00:00]} Nf6 {[%emt 0:00:30]} 6. Bf4 {[%emt 0:00:30]} Bf5 {[%emt 0:00:30]} 7. e3 {[%emt 0:01:30]} e6 {[%emt 0:01:30]} 8. Bd3 {[%emt 0:01:30]} Bxd3 {[%emt 0:03:30]} 9. Qxd3 {[%emt 0:00:30]} Bd6 {[%emt 0:00:30]} 10. Bxd6 {[%emt 0:02:30]} Qxd6 {[%emt 0:00:30]} 11. O-O {[%emt 0:00:30]} O-O {[%emt 0:00:00]} 12. Rfc1 {[%emt 0:00:00]} Rfc8 {[%emt 0:01:00]} 13. h3 {[%emt 0:01:00]} h6 {[%emt 0:00:30]} 14. a3 {[%emt 0:00:30]} a6 {[%emt 0:00:30]} 15. Rc2 {[%emt 0:00:30]} Rc7 {[%emt 0:01:30]} 16. Rac1 {[%emt 0:00:30]} Rac8 {[%emt 0:00:00]} 17. Na4 {[%emt 0:00:30]} Nd7 {[%emt 0:00:00]} 18. Nc5 {[%emt 0:01:30]} Nxc5 {[%emt 0:01:30]} 19. Rxc5 {[%emt 0:00:30]} Nb8 {[%emt 0:01:30]} 20. Rxc7 {[%emt 0:00:30]} Rxc7 {[%emt 0:00:30]} 21. Rxc7 {[%emt 0:00:30]} Qxc7 {[%emt 0:00:00]} 22. Qb3 {[%emt 0:00:00]} Nd7 {[%emt 0:00:00]} 23. Qb4 {[%emt 0:01:00]} Qc1+ {[%emt 0:00:30]} 24. Kh2 {[%emt 0:00:30]} Qc7+ {[%emt 0:00:30]} 25. Kg1 {[%emt 0:00:30]} Qc1+ {[%emt 0:00:00]} 26. Kh2 {[%emt 0:00:00]} Qc7+ {[%emt 0:00:00]} 27. Kg1 {[%emt 0:00:00]} Qc1+ {[%emt 0:00:30]} 28. Kh2 {[%emt 0:00:30]} Qc7+ {[%emt 0:00:00]} 29. Kh1 {[%emt 0:00:00]} 1/2-1/2

[Event "Turkish Super League 2019"]
[Site "Konya"]
[Date "2019.07.25"]
[Round "10"]
[White "Kerigan, Demre"]
[Black "Safarli, Eltaj"]
[Result "0-1"]
[ECO "C28"]
[WhiteElo "2398"]
[BlackElo "2608"]
[Annotator "RC"]
[PlyCount "70"]
[EventDate "2019.07.17"]
[EventType "team-tourn"]
[EventCountry "TUR"]
[SourceTitle "playchess.com"]
[Source "ChessBase"]
[SourceQuality "1"]
[TimeControl "40/5400+30:1800+30"]

1. e4 {[%emt 0:00:30]} e5 {[%emt 0:00:30]} 2. Bc4 {[%emt 0:00:30]} Nf6 {[%emt 0:00:30]} 3. d3 {[%emt 0:00:30]} Nc6 {[%emt 0:01:30]} 4. Nc3 {[%emt 0:00:30]} Na5 {[%emt 0:00:30]} 5. Nge2 {[%emt 0:01:30]} Be7 {[%emt 0:00:30]} 6. a4 {[%emt 0:00:30]} Nxc4 {[%emt 0:01:30]} 7. dxc4 {[%emt 0:00:30]} d6 {[%emt 0:00:00]} 8. O-O {[%emt 0:00:30]} O-O {[%emt 0:00:00]} 9. b3 {[%emt 0:01:30]} Be6 {[%emt 0:00:30]} 10. Qd3 {[%emt 0:03:30]} c6 {[%emt 0:03:30]} 11. Ba3 {[%emt 0:02:30]} Qc7 {[%emt 0:00:30]} 12. Rfd1 {[%emt 0:03:30]} Rad8 {[%emt 0:00:30]} 13. Qf3 {[%emt 0:02:30]} Ne8 {[%emt 0:06:30]} 14. Qe3 {[%emt 0:11:30]} a6 {[%emt 0:01:30]} 15. Rd3 {[%emt 0:00:30]} f5 {[%emt 0:04:30]} 16. exf5 {[%emt 0:10:30]} Bxf5 {[%emt 0:00:30]} 17. Rd2 {[%emt 0:00:30]} h6 {[%emt 0:12:30]} 18. Ne4 {[%emt 0:12:30]} Bxe4 {[%emt 0:05:30]} 19. Qxe4 {[%emt 0:00:30]} d5 {[%emt 0:00:30]} 20. Bxe7 {[%emt 0:02:30]} dxe4 {[%emt 0:06:30]} 21. Bxd8 {[%emt 0:00:30]} Qf7 {[%emt 0:00:00]} 22. Bb6 {[%emt 0:00:30]} Nf6 {[%emt 0:03:00]} 23. Ng3 {[%emt 0:15:30]} h5 {[%emt 0:06:30]} 24. Re1 {[%emt 0:03:30]} Qg6 {[%emt 0:05:30]} 25. h3 {[%emt 0:02:30]} Rf7 {[%emt 0:06:30]} 26. Rde2 {[%emt 0:06:24]} h4 {[%emt 0:03:30]} 27. Nxe4 {[%emt 0:05:10]} Nh5 {[%emt 0:00:30]} 28. Re3 {[%emt 0:03:33]} Nf4 {[%emt 0:02:30]} 29. g4 {[%emt 0:00:15]} hxg3 {[%emt 0:02:30]} 30. Rxg3 {[%emt 0:01:27]} Qh5 {[%emt 0:00:30]} 31. Kh2 {[%emt 0:00:24]} Ne6 {[%emt 0:00:30]} 32. Reg1 {[%emt 0:02:37]} Rf3 {[%emt 0:03:30]} 33. Re1 {[%emt 0:02:59]} Rxg3 {[%emt 0:01:30]} 34. fxg3 {[%emt 0:00:27]} Qf3 {[%emt 0:00:30]} 35. Bf2 {[%emt 0:00:58]} Ng5 {[%emt 0:02:30]} 0-1

[Event "Turkish Super League 2019"]
[Site "Konya"]
[Date "2019.07.25"]
[Round "10"]
[White "Yurtseven, Melih"]
[Black "Zeydan, Salih"]
[Result "1-0"]
[ECO "A38"]
[WhiteElo "2381"]
[BlackElo "2101"]
[Annotator "NA"]
[PlyCount "95"]
[EventDate "2019.07.17"]
[EventType "team-tourn"]
[EventCountry "TUR"]
[SourceTitle "playchess.com"]
[Source "ChessBase"]
[SourceQuality "1"]
[TimeControl "40/5400+30:1800+30"]

1. Nf3 {[%emt 0:02:30]} Nf6 {[%emt 0:00:30]} 2. g3 {[%emt 0:02:30]} g6 {[%emt 0:03:30]} 3. c4 {[%emt 0:05:30]} c5 {[%emt 0:07:30]} 4. Bg2 {[%emt 0:02:30]} Nc6 {[%emt 0:00:30]} 5. O-O {[%emt 0:03:30]} d6 {[%emt 0:06:30]} 6. b3 {[%emt 0:05:30]} Bg7 {[%emt 0:01:30]} 7. Bb2 {[%emt 0:00:30]} O-O {[%emt 0:00:30]} 8. Nc3 {[%emt 0:00:30]} Rb8 {[%emt 0:06:30]} 9. e3 {[%emt 0:12:30]} a6 {[%emt 0:03:30]} 10. d4 {[%emt 0:00:30]} b5 {[%emt 0:04:30]} 11. dxc5 {[%emt 0:05:30]} dxc5 {[%emt 0:01:30]} 12. Qe2 {[%emt 0:01:30]} Qa5 {[%emt 0:06:30]} 13. h3 {[%emt 0:04:30]} bxc4 {[%emt 0:11:30]} 14. Nd2 {[%emt 0:01:30]} Qc7 {[%emt 0:05:30]} 15. Nxc4 {[%emt 0:00:30]} Na5 {[%emt 0:01:30]} 16. Na4 {[%emt 0:01:30]} Be6 {[%emt 0:03:30]} 17. Nxa5 {[%emt 0:06:30]} Qxa5 {[%emt 0:00:00]} 18. Bc3 {[%emt 0:00:30]} Qc7 {[%emt 0:02:00]} 19. Qxa6 {[%emt 0:06:30]} Bd7 {[%emt 0:10:30]} 20. Rfc1 {[%emt 0:08:30]} Bb5 {[%emt 0:02:42]} 21. Qa5 {[%emt 0:00:30]} Qxa5 {[%emt 0:01:15]} 22. Bxa5 {[%emt 0:00:30]} c4 {[%emt 0:02:55]} 23. Bc3 {[%emt 0:02:30]} cxb3 {[%emt 0:08:10]} 24. axb3 {[%emt 0:00:00]} Nd7 {[%emt 0:01:53]} 25. Bxg7 {[%emt 0:03:00]} Kxg7 {[%emt 0:00:09]} 26. Rc7 {[%emt 0:00:30]} Rfc8 {[%emt 0:02:31]} 27. Rac1 {[%emt 0:02:30]} Rxc7 {[%emt 0:01:22]} 28. Rxc7 {[%emt 0:00:00]} e6 {[%emt 0:00:16]} 29. Nc3 {[%emt 0:01:00]} Nf6 {[%emt 0:02:54]} 30. b4 {[%emt 0:00:30]} Bd3 {[%emt 0:00:48]} 31. Bb7 {[%emt 0:09:55]} Ne8 {[%emt 0:02:22]} 32. Rd7 {[%emt 0:00:02]} Bc2 {[%emt 0:00:28]} 33. b5 {[%emt 0:01:09]} Nf6 {[%emt 0:00:37]} 34. Rd2 {[%emt 0:05:07]} Rxb7 {[%emt 0:01:01]} 35. Rxc2 {[%emt 0:00:01]} Nd7 {[%emt 0:00:00]} 36. Rb2 {[%emt 0:00:20]} Nb6 {[%emt 0:00:11]} 37. g4 {[%emt 0:02:14]} Rc7 {[%emt 0:00:29]} 38. Ne2 {[%emt 0:01:17]} e5 {[%emt 0:00:37]} 39. Ng3 {[%emt 0:02:20]} Rc4 {[%emt 0:00:38]} 40. Kg2 {[%emt 0:00:00]} Kf6 {[%emt 0:00:00]} 41. Kf3 {[%emt 0:04:05]} h6 {[%emt 0:03:42]} 42. h4 {[%emt 0:07:30]} Ke6 {[%emt 0:08:30]} 43. h5 {[%emt 0:00:30]} f5 {[%emt 0:07:09]} 44. hxg6 {[%emt 0:04:28]} Rxg4 {[%emt 0:01:28]} 45. e4 {[%emt 0:07:28]} Rf4+ {[%emt 0:02:17]} 46. Ke2 {[%emt 0:00:02]} fxe4 {[%emt 0:02:17]} 47. Rc2 {[%emt 0:00:02]} Kd7 {[%emt 0:02:49]} 48. Nh5 {[%emt 0:01:44]} 1-0

[Event "Turkish Super League 2019"]
[Site "Konya"]
[Date "2019.07.25"]
[Round "10"]
[White "Buksa, Nataliya"]
[Black "Daulyte-Cornette, Deimante"]
[Result "1-0"]
[ECO "C77"]
[WhiteElo "2379"]
[BlackElo "2444"]
[Annotator "NA"]
[PlyCount "73"]
[EventDate "2019.07.17"]
[EventType "team-tourn"]
[EventCountry "TUR"]
[SourceTitle "playchess.com"]
[Source "ChessBase"]
[SourceQuality "1"]
[TimeControl "40/5400+30:1800+30"]

1. e4 {[%emt 0:01:30]} e5 {[%emt 0:00:30]} 2. Nf3 {[%emt 0:00:30]} Nc6 {[%emt 0:00:30]} 3. Bb5 {[%emt 0:00:00]} a6 {[%emt 0:00:00]} 4. Ba4 {[%emt 0:00:00]} Nf6 {[%emt 0:00:00]} 5. Nc3 {[%emt 0:00:00]} b5 {[%emt 0:02:30]} 6. Bb3 {[%emt 0:00:00]} Bc5 {[%emt 0:00:30]} 7. d3 {[%emt 0:00:30]} d6 {[%emt 0:01:30]} 8. Nd5 {[%emt 0:00:30]} h6 {[%emt 0:00:00]} 9. c3 {[%emt 0:00:30]} Rb8 {[%emt 0:08:00]} 10. h3 {[%emt 0:18:30]} Ba7 {[%emt 0:04:30]} 11. O-O {[%emt 0:01:30]} O-O {[%emt 0:03:30]} 12. Be3 {[%emt 0:15:30]} Bxe3 {[%emt 0:07:30]} 13. Nxf6+ {[%emt 0:01:30]} Qxf6 {[%emt 0:00:30]} 14. fxe3 {[%emt 0:00:00]} Qe7 {[%emt 0:16:30]} 15. Qe1 {[%emt 0:01:00]} Be6 {[%emt 0:00:30]} 16. Nh4 {[%emt 0:03:30]} Bxb3 {[%emt 0:03:30]} 17. axb3 {[%emt 0:00:30]} Ra8 {[%emt 0:00:30]} 18. Nf5 {[%emt 0:02:30]} Qd8 {[%emt 0:01:30]} 19. Qg3 {[%emt 0:10:30]} Qg5 {[%emt 0:00:30]} 20. Rf3 {[%emt 0:00:30]} Kh8 {[%emt 0:20:30]} 21. Qf2 {[%emt 0:14:30]} g6 {[%emt 0:11:01]} 22. Rg3 {[%emt 0:00:30]} Qh5 {[%emt 0:00:52]} 23. Ne7 {[%emt 0:02:30]} Nxe7 {[%emt 0:02:42]} 24. Qf6+ {[%emt 0:00:00]} Kg8 {[%emt 0:00:29]} 25. Qxe7 {[%emt 0:00:00]} Qe2 {[%emt 0:04:00]} 26. Rf1 {[%emt 0:07:54]} Rae8 {[%emt 0:00:59]} 27. Qxc7 {[%emt 0:00:04]} Qxd3 {[%emt 0:02:06]} 28. Qb7 {[%emt 0:00:09]} Rb8 {[%emt 0:01:08]} 29. Qxa6 {[%emt 0:00:38]} Qxe4 {[%emt 0:00:48]} 30. Qxd6 {[%emt 0:00:15]} Rbd8 {[%emt 0:00:48]} 31. Qb6 {[%emt 0:01:00]} Rb8 {[%emt 0:03:47]} 32. Qf6 {[%emt 0:00:47]} Rbd8 {[%emt 0:00:27]} 33. Kh2 {[%emt 0:02:47]} Kh7 {[%emt 0:02:22]} 34. Qe7 {[%emt 0:02:30]} Kg7 {[%emt 0:00:23]} 35. Rgf3 {[%emt 0:03:44]} Qd5 {[%emt 0:00:09]} 36. c4 {[%emt 0:00:00]} bxc4 {[%emt 0:01:20]} 37. e4 {[%emt 0:00:00]} 1-0

[Event "Turkish Super League 2019"]
[Site "Konya"]
[Date "2019.07.25"]
[Round "10"]
[White "Arat, Ufuk Sezen"]
[Black "Gholami, Aryan"]
[Result "0-1"]
[ECO "D30"]
[WhiteElo "2376"]
[BlackElo "2532"]
[Annotator "ChessBase"]
[PlyCount "120"]
[EventDate "2019.07.17"]
[EventType "team-tourn"]
[EventCountry "TUR"]
[SourceTitle "playchess.com"]
[Source "ChessBase"]
[SourceQuality "1"]
[TimeControl "40/5400+30:1800+30"]

1. d4 {[%emt 0:00:30]} d5 {[%emt 0:00:30]} 2. c4 {[%emt 0:00:30]} e6 {[%emt 0:00:00]} 3. g3 {[%emt 0:00:30]} dxc4 {[%emt 0:05:00]} 4. Qa4+ {[%emt 0:07:30]} Bd7 {[%emt 0:05:30]} 5. Qxc4 {[%emt 0:02:30]} Bc6 {[%emt 0:00:30]} 6. Nf3 {[%emt 0:08:30]} Bxf3 {[%emt 0:04:30]} 7. exf3 {[%emt 0:00:00]} c6 {[%emt 0:06:30]} 8. Nc3 {[%emt 0:00:00]} Ne7 {[%emt 0:01:30]} 9. Bd3 {[%emt 0:15:30]} g6 {[%emt 0:00:30]} 10. Bg5 {[%emt 0:10:30]} Bg7 {[%emt 0:00:30]} 11. Ne4 {[%emt 0:07:30]} h6 {[%emt 0:02:30]} 12. Be3 {[%emt 0:05:30]} Nf5 {[%emt 0:02:30]} 13. O-O-O {[%emt 0:06:30]} O-O {[%emt 0:00:30]} 14. Bc2 {[%emt 0:02:30]} Qd5 {[%emt 0:05:30]} 15. Qa4 {[%emt 0:00:00]} Nd7 {[%emt 0:02:30]} 16. Bb3 {[%emt 0:02:00]} Nb6 {[%emt 0:00:30]} 17. Qb4 {[%emt 0:00:30]} Qd8 {[%emt 0:02:30]} 18. h4 {[%emt 0:00:30]} a5 {[%emt 0:00:00]} 19. Qd2 {[%emt 0:01:30]} a4 {[%emt 0:03:00]} 20. Bc2 {[%emt 0:00:00]} Qd5 {[%emt 0:03:30]} 21. Kb1 {[%emt 0:04:00]} Nc4 {[%emt 0:03:30]} 22. Qe2 {[%emt 0:00:30]} e5 {[%emt 0:08:30]} 23. Nc3 {[%emt 0:03:30]} Qe6 {[%emt 0:00:00]} 24. Bxf5 {[%emt 0:00:30]} Qxf5+ {[%emt 0:00:00]} 25. Qd3 {[%emt 0:00:30]} Nxe3 {[%emt 0:05:30]} 26. fxe3 {[%emt 0:01:30]} Qxf3 {[%emt 0:00:30]} 27. h5 {[%emt 0:00:30]} exd4 {[%emt 0:01:30]} 28. exd4 {[%emt 0:00:30]} Qxd3+ {[%emt 0:00:00]} 29. Rxd3 {[%emt 0:00:30]} a3 {[%emt 0:00:00]} 30. b4 {[%emt 0:01:32]} Rfd8 {[%emt 0:00:30]} 31. hxg6 {[%emt 0:01:12]} fxg6 {[%emt 0:00:30]} 32. Rhd1 {[%emt 0:00:00]} Ra6 {[%emt 0:00:30]} 33. Kc2 {[%emt 0:01:21]} Rb6 {[%emt 0:00:30]} 34. Kb3 {[%emt 0:03:04]} Bf8 {[%emt 0:01:30]} 35. b5 {[%emt 0:00:05]} cxb5 {[%emt 0:00:00]} 36. d5 {[%emt 0:00:15]} Rf6 {[%emt 0:05:00]} 37. Ne4 {[%emt 0:01:09]} Rf5 {[%emt 0:02:30]} 38. Nc3 {[%emt 0:03:57]} b4 {[%emt 0:06:30]} 39. Ne4 {[%emt 0:00:58]} Re8 {[%emt 0:00:00]} 40. Nd2 {[%emt 0:00:00]} b5 {[%emt 0:00:00]} 41. d6 {[%emt 0:11:27]} Rc5 {[%emt 0:14:30]} 42. Kxb4 {[%emt 0:09:30]} Rc6 {[%emt 0:00:00]} 43. Kxb5 {[%emt 0:02:45]} Rxd6 {[%emt 0:00:00]} 44. Rxd6 {[%emt 0:01:04]} Bxd6 {[%emt 0:00:30]} 45. Nc4 {[%emt 0:01:38]} Bf8 {[%emt 0:04:30]} 46. Rd3 {[%emt 0:04:52]} Rb8+ {[%emt 0:00:00]} 47. Nb6 {[%emt 0:04:48]} h5 {[%emt 0:00:00]} 48. Kc6 {[%emt 0:00:56]} Re8 {[%emt 0:00:30]} 49. Nd7 {[%emt 0:04:40]} Re6+ {[%emt 0:00:30]} 50. Kc7 {[%emt 0:00:47]} Be7 {[%emt 0:00:30]} 51. Nb6 {[%emt 0:01:46]} Re2 {[%emt 0:03:30]} 52. Nd5 {[%emt 0:00:04]} Bf8 {[%emt 0:00:00]} 53. Nc3 {[%emt 0:00:47]} Rb2 {[%emt 0:00:00]} 54. Kd7 {[%emt 0:00:51]} Bg7 {[%emt 0:00:30]} 55. Ke6 {[%emt 0:00:47]} Kh7 {[%emt 0:02:30]} 56. Ne4 {[%emt 0:01:37]} Re2 {[%emt 0:00:30]} 57. Kd5 {[%emt 0:00:03]} Rxa2 {[%emt 0:00:00]} 58. Ng5+ {[%emt 0:00:28]} Kg8 {[%emt 0:00:00]} 59. Kc4 {[%emt 0:00:58]} Bf6 {[%emt 0:03:30]} 60. Kb3 {[%emt 0:00:43]} Re2 {[%emt 0:00:30]} 0-1

[Event "Turkish Super League 2019"]
[Site "Konya"]
[Date "2019.07.25"]
[Round "10"]
[White "Tanriverdi, Enes"]
[Black "Sevgi, Volkan"]
[Result "0-1"]
[ECO "A80"]
[WhiteElo "2374"]
[BlackElo "2302"]
[Annotator "NA"]
[PlyCount "59"]
[EventDate "2019.07.17"]
[EventType "team-tourn"]
[EventCountry "TUR"]
[SourceTitle "playchess.com"]
[Source "ChessBase"]
[SourceQuality "1"]
[TimeControl "40/5400+30:1800+30"]

1. Nf3 {[%emt 0:01:30]} d6 {[%emt 0:03:30]} 2. d4 {[%emt 0:00:30]} f5 {[%emt 0:00:30]} 3. Nc3 {[%emt 0:02:30]} Nf6 {[%emt 0:06:30]} 4. Bg5 {[%emt 0:00:30]} Nbd7 {[%emt 0:00:30]} 5. Qd3 {[%emt 0:16:30]} g6 {[%emt 0:06:30]} 6. h4 {[%emt 0:01:30]} h6 {[%emt 0:01:30]} 7. Bd2 {[%emt 0:00:30]} c5 {[%emt 0:19:30]} 8. d5 {[%emt 0:14:30]} Ng4 {[%emt 0:00:30]} 9. h5 {[%emt 0:05:30]} Nde5 {[%emt 0:03:30]} 10. Nxe5 {[%emt 0:00:30]} Nxe5 {[%emt 0:00:00]} 11. Qg3 {[%emt 0:00:00]} g5 {[%emt 0:00:00]} 12. f4 {[%emt 0:00:00]} Nc4 {[%emt 0:06:30]} 13. Bc1 {[%emt 0:00:30]} e5 {[%emt 0:05:30]} 14. e4 {[%emt 0:08:30]} exf4 {[%emt 0:25:23]} 15. Bxf4 {[%emt 0:00:30]} Qf6 {[%emt 0:01:36]} 16. Bxc4 {[%emt 0:01:30]} gxf4 {[%emt 0:00:04]} 17. Qxf4 {[%emt 0:00:00]} a6 {[%emt 0:01:16]} 18. exf5 {[%emt 0:03:00]} b5 {[%emt 0:02:12]} 19. Be2 {[%emt 0:05:30]} Qxf5 {[%emt 0:04:57]} 20. O-O {[%emt 0:04:30]} Qxf4 {[%emt 0:01:07]} 21. Rxf4 {[%emt 0:00:00]} Bg7 {[%emt 0:02:24]} 22. Raf1 {[%emt 0:05:00]} Ra7 {[%emt 0:02:03]} 23. Bd3 {[%emt 0:00:30]} Re7 {[%emt 0:03:18]} 24. a4 {[%emt 0:04:30]} b4 {[%emt 0:00:53]} 25. Ne4 {[%emt 0:00:30]} Be5 {[%emt 0:00:18]} 26. Rf6 {[%emt 0:02:30]} c4 {[%emt 0:00:51]} 27. Bxc4 {[%emt 0:01:30]} Bd4+ {[%emt 0:00:06]} 28. Kh2 {[%emt 0:01:30]} Rxe4 {[%emt 0:00:08]} 29. Bd3 {[%emt 0:00:30]} Rh4+ {[%emt 0:00:41]} 30. Kg3 {[%emt 0:00:00]} 0-1